bitfinex/quotes_BTCUSD_20241103
["timestamp","ask_amount","ask_price","bid_price","bid_amount"]
[1730645740056,0.004,67729.0,67728.0,0.148466]
[1730645740772,0.002,67729.0,67728.0,0.148466]
[1730645741252,0.008,67729.0,67728.0,0.148466]
[1730645743965,0.002,67729.0,67728.0,0.148466]
[1730645744207,0.00014216,67736.0,67735.0,0.147634]
[1730645744894,0.15977672,67741.0,67735.0,0.147632]
[1730645745134,0.01201356,67740.0,67734.0,0.295272]
[1730645745391,0.005,67736.0,67734.0,0.295272]
[1730645745647,0.005,67736.0,67735.0,0.147634]
[1730645745915,0.00514216,67736.0,67735.0,0.147634]
[1730645746162,0.005,67736.0,67735.0,0.147634]
[1730645746884,0.001,67736.0,67735.0,0.147634]
[1730645748326,0.007,67736.0,67735.0,0.147634]
[1730645748991,0.00714216,67736.0,67735.0,0.147634]
[1730645749216,0.007,67736.0,67735.0,0.147634]
[1730645750632,0.10846365,67774.0,67748.0,1.008633]
[1730645750862,0.22159028,67764.0,67762.0,0.252575]
[1730645751375,0.22159028,67771.0,67762.0,0.247575]
[1730645751610,0.22159028,67771.0,67762.0,0.25052609]
[1730645752082,0.003636,67763.0,67762.0,0.25552609]
[1730645752555,0.003636,67763.0,67762.0,0.40632313]
[1730645752793,0.003636,67763.0,67762.0,0.40337204]
[1730645753975,0.002636,67763.0,67762.0,0.40337204]
[1730645754218,0.003636,67763.0,67762.0,0.41237204]
[1730645755439,0.003636,67763.0,67762.0,0.261575]
[1730645755693,0.003636,67763.0,67762.0,0.161575]
[1730645757848,0.002636,67763.0,67762.0,0.156575]
[1730645758087,0.003636,67763.0,67762.0,0.162575]
[1730645758509,0.001636,67763.0,67762.0,0.147575]
[1730645759841,0.002636,67763.0,67762.0,0.153575]
[1730645760057,0.003636,67763.0,67762.0,0.16252606]
[1730645760279,0.001636,67763.0,67762.0,0.4013231]
[1730645760522,0.001636,67763.0,67762.0,0.4330648]
[1730645760760,0.003636,67763.0,67762.0,0.5201648]
[1730645761881,0.003636,67763.0,67762.0,0.5666648]
[1730645762977,0.003636,67763.0,67762.0,0.5416648]
[1730645763210,0.003636,67763.0,67762.0,0.4951648]
[1730645763458,0.003636,67763.0,67762.0,0.5181648]
[1730645763692,0.003636,67763.0,67762.0,0.5191648]
[1730645763931,0.003636,67763.0,67762.0,0.4951648]
[1730645764348,0.003636,67763.0,67762.0,0.4901648]
[1730645764562,0.003636,67763.0,67762.0,0.4951648]
[1730645764781,0.003636,67763.0,67762.0,0.4150648]
[1730645765238,0.003636,67763.0,67762.0,0.41037204]
[1730645765514,0.003636,67763.0,67762.0,0.41537204]
[1730645767119,0.003636,67763.0,67762.0,0.159575]
[1730645767370,0.003636,67763.0,67762.0,0.012]
[1730645767583,0.003636,67763.0,67762.0,0.159575]
[1730645768035,0.001636,67763.0,67762.0,0.147575]
[1730645768257,0.002636,67763.0,67762.0,0.15652619]
[1730645768471,0.002636,67763.0,67762.0,0.15852619]
[1730645768898,0.002636,67763.0,67762.0,0.155575]
[1730645769137,0.002636,67763.0,67762.0,0.008]
[1730645769376,0.225809,67763.0,67762.0,0.008]
[1730645770057,0.224809,67763.0,67762.0,0.002]
[1730645770531,0.29515,67762.0,67753.0,0.22159028]
[1730645770752,0.3622015,67762.0,67753.0,0.22159028]
[1730645770975,0.147581,67760.0,67753.0,0.36918428]
[1730645771192,0.147578,67761.0,67755.0,0.147589]
[1730645771841,0.30882628,67763.0,67745.0,0.300224]
[1730645771842,0.22159028,67756.0,67745.0,0.295223]
[1730645772057,0.295185,67754.0,67747.0,0.147607]
[1730645772271,0.340775,67757.0,67746.0,0.22159028]
[1730645772476,0.0456,67757.0,67746.0,0.22159028]
[1730645772686,0.0456,67757.0,67750.0,0.1476]
[1730645772932,0.147589,67756.0,67750.0,0.1476]
[1730645773214,0.193188,67757.0,67746.0,0.295218]
[1730645773446,0.005,67761.0,67755.0,0.295179]
[1730645773661,0.005,67761.0,67746.0,0.002]
[1730645773889,0.147567,67766.0,67747.0,0.22454196]
[1730645774109,0.29513,67767.0,67754.0,0.295181]
[1730645774328,0.147576,67762.0,67754.0,0.295181]
[1730645774775,0.44639928,67763.0,67757.0,0.147586]
[1730645774994,0.44639928,67763.0,67756.0,0.147586]
[1730645775205,0.147575,67762.0,67756.0,0.147586]
[1730645775846,0.002,67761.0,67760.0,0.147579]
[1730645776063,0.002,67761.0,67748.0,0.300209]
[1730645776281,0.001636,67763.0,67753.0,0.295188]
[1730645776495,0.005,67761.0,67749.0,0.14579704]
[1730645776728,0.0513,67761.0,67747.0,0.22159028]
[1730645776973,0.147582,67759.0,67749.0,0.295207]
[1730645777229,0.30479028,67757.0,67749.0,0.147602]
[1730645777449,0.30479028,67757.0,67740.0,0.1]
[1730645777450,0.147593,67754.0,67748.0,0.147605]
[1730645777891,0.147593,67754.0,67747.0,0.22159028]
[1730645777892,0.0832,67757.0,67745.0,0.147612]
[1730645778122,0.0832,67757.0,67746.0,0.147609]
[1730645778123,0.01161829,67756.0,67746.0,0.147609]
[1730645778359,0.442772,67755.0,67748.0,0.147605]
[1730645778581,0.442772,67755.0,67740.0,0.295246]
[1730645778582,0.147594,67754.0,67741.0,0.00295208]
[1730645778810,0.147591,67755.0,67748.0,0.147605]
[1730645779030,0.22899704,67757.0,67746.0,0.147608]
[1730645779031,0.29518,67756.0,67746.0,0.147608]
[1730645779249,0.147595,67753.0,67747.0,0.147607]
[1730645779467,0.147591,67755.0,67749.0,0.001]
[1730645779702,0.22899704,67757.0,67749.0,0.148602]
[1730645779929,0.22899704,67757.0,67748.0,0.148605]
[1730645779930,0.147593,67754.0,67748.0,0.148605]
[1730645780145,0.003,67755.0,67749.0,0.147601]
[1730645780368,0.01164104,67754.0,67753.0,0.147594]
[1730645780599,0.01164029,67756.0,67753.0,0.147593]
[1730645780857,0.004,67753.0,67752.0,0.44279]
[1730645781256,0.003,67755.0,67754.0,0.147592]
[1730645781466,0.003,67755.0,67754.0,0.15054369]
[1730645781681,0.003,67755.0,67754.0,0.15054339]
[1730645781896,0.003,67755.0,67754.0,0.29634043]
[1730645782121,0.001636,67763.0,67755.0,0.005]
[1730645782328,0.001636,67763.0,67762.0,0.147575]
[1730645782592,0.001636,67763.0,67762.0,0.29837204]
[1730645782806,0.001636,67763.0,67762.0,0.50797204]
[1730645783028,0.001636,67763.0,67762.0,0.50597204]
[1730645783249,0.001636,67763.0,67762.0,0.50797204]
[1730645783457,0.002636,67763.0,67762.0,0.50797204]
[1730645784079,0.003636,67763.0,67762.0,0.50797204]
[1730645784298,0.001636,67780.0,67776.0,0.147544]
[1730645784521,0.001636,67780.0,67776.0,0.29834104]
[1730645784757,0.001636,67780.0,67776.0,0.30034104]
[1730645784964,0.001636,67780.0,67779.0,0.147538]
[1730645785175,0.001636,67780.0,67779.0,0.29333504]
[1730645786079,0.001636,67780.0,67779.0,0.147538]
[1730645786719,0.002636,67780.0,67779.0,0.002]
[1730645786923,0.002636,67780.0,67779.0,0.149538]
[1730645787145,0.002636,67780.0,67779.0,0.002]
[1730645787356,0.001636,67780.0,67779.0,0.147538]
[1730645787572,0.002636,67780.0,67779.0,0.002]
[1730645787804,0.16182669,67780.0,67779.0,0.005]
[1730645788251,0.16182649,67780.0,67779.0,0.005]
[1730645788508,0.01429049,67780.0,67779.0,0.005]
[1730645788707,0.16182649,67780.0,67779.0,0.005]
[1730645788928,0.16082749,67780.0,67774.0,0.147547]
[1730645789147,0.01165449,67779.0,67773.0,0.22159028]
[1730645789355,0.01165449,67778.0,67773.0,0.22159028]
[1730645789563,0.002636,67780.0,67773.0,0.22159028]
[1730645789796,0.002636,67780.0,67772.0,0.147552]
[1730645789797,0.15919562,67779.0,67772.0,0.147552]
[1730645790004,0.00802148,67778.0,67772.0,0.147552]
[1730645790226,0.147539,67779.0,67772.0,0.147552]
[1730645790648,0.147539,67779.0,67773.0,0.14755]
[1730645790856,0.147547,67775.0,67768.0,0.147561]
[1730645791086,0.22159028,67778.0,67764.0,0.22159028]
[1730645791296,0.14579704,67777.0,67749.0,0.005]
[1730645791510,0.0753,67775.0,67764.0,0.22159028]
[1730645791727,0.147566,67767.0,67764.0,0.22159028]
[1730645791938,0.147556,67771.0,67764.0,0.36916028]
[1730645792148,0.24024032,67773.0,67763.0,0.295146]
[1730645792412,0.147556,67771.0,67762.0,0.29515]
[1730645792618,0.16620241,67771.0,67764.0,0.14757]
[1730645792833,0.01864641,67772.0,67757.0,0.22159028]
[1730645793048,0.147565,67767.0,67760.0,0.147579]
[1730645793277,0.01864641,67769.0,67757.0,0.22159028]
[1730645793489,0.147566,67766.0,67759.0,0.14758]
[1730645793915,0.01864641,67769.0,67758.0,0.295168]
[1730645794127,0.31375941,67771.0,67759.0,0.295163]
[1730645794332,0.147566,67766.0,67757.0,0.22159028]
[1730645794550,0.147566,67766.0,67760.0,0.147579]
[1730645794797,0.004,67767.0,67766.0,0.147566]
[1730645795099,0.004,67767.0,67766.0,0.15051694]
[1730645795782,0.0753,67775.0,67768.0,0.295122]
[1730645795992,0.0753,67775.0,67772.0,0.147551]
[1730645796879,0.0873,67775.0,67772.0,0.147551]
[1730645797291,0.0963,67775.0,67772.0,0.147551]
[1730645797496,0.0843,67775.0,67772.0,0.147551]
[1730645797926,0.0843,67775.0,67773.0,0.14755]
[1730645798147,0.0843,67775.0,67774.0,0.147549]
[1730645798576,0.009,67775.0,67774.0,0.147549]
[1730645798798,0.021,67775.0,67774.0,0.147549]
[1730645799022,0.021,67775.0,67772.0,0.442658]
[1730645799245,0.001634,67779.0,67773.0,0.295102]
[1730645799456,0.001634,67779.0,67774.0,0.442647]
[1730645799457,0.009,67775.0,67774.0,0.442647]
[1730645799684,0.021,67775.0,67774.0,0.442647]
[1730645800141,0.009,67775.0,67774.0,0.442647]
[1730645800358,0.001634,67779.0,67776.0,0.147544]
[1730645800580,0.014634,67779.0,67776.0,0.147544]
[1730645801039,0.015634,67779.0,67776.0,0.147544]
[1730645801260,0.015634,67779.0,67774.0,0.295098]
[1730645801511,0.015634,67779.0,67754.0,0.14414765]
[1730645801512,0.295089,67776.0,67754.0,0.14414765]
[1730645801727,0.442684,67769.0,67768.0,0.22159028]
[1730645801963,0.147564,67767.0,67760.0,0.22159028]
[1730645802194,0.147571,67764.0,67760.0,0.22159028]
[1730645802446,0.0753,67768.0,67760.0,0.22159028]
[1730645802702,0.147564,67767.0,67758.0,0.147582]
[1730645802937,0.0753,67768.0,67757.0,0.29517]
[1730645803162,0.0753,67768.0,67754.0,0.1]
[1730645803407,0.147574,67763.0,67755.0,0.22159028]
[1730645803655,0.147577,67761.0,67760.0,0.002]
[1730645803872,0.147579,67760.0,67754.0,0.22159028]
[1730645804754,0.295147,67763.0,67754.0,0.22159028]
[1730645804964,0.147579,67760.0,67754.0,0.22159028]
[1730645805495,0.001634,67779.0,67778.0,0.14754]
[1730645806867,0.002634,67779.0,67778.0,0.14954]
[1730645807337,0.001634,67779.0,67778.0,0.14754]
[1730645807583,0.001634,67779.0,67778.0,0.29628745]
[1730645807807,0.001634,67779.0,67778.0,0.29333704]
[1730645808694,0.002634,67779.0,67778.0,0.29533704]
[1730645808915,0.001634,67779.0,67778.0,0.32133704]
[1730645809188,0.001634,67779.0,67778.0,0.32233704]
[1730645809618,0.002634,67779.0,67778.0,0.32433704]
[1730645810751,0.002634,67779.0,67778.0,0.32633704]
[1730645810976,0.002634,67779.0,67778.0,0.42933704]
[1730645811877,0.002634,67779.0,67778.0,0.40633704]
[1730645813149,0.002634,67779.0,67778.0,0.42933704]
[1730645813782,0.002634,67779.0,67778.0,0.47833704]
[1730645814016,1e-06,67780.0,67779.0,0.159538]
[1730645814239,1e-06,67785.0,67784.0,0.515927]
[1730645814458,0.22159028,67799.0,67798.0,0.257496]
[1730645814673,0.22159028,67799.0,67798.0,0.42729304]
[1730645815088,0.075,67824.0,67799.0,0.275494]
[1730645815370,0.075,67824.0,67799.0,0.42424027]
[1730645815626,0.51645128,67829.0,67799.0,0.42424027]
[1730645815627,0.001672,67807.0,67806.0,0.006]
[1730645815842,0.001672,67807.0,67806.0,0.43022492]
[1730645816059,0.001672,67807.0,67806.0,0.42827604]
[1730645816694,0.001672,67807.0,67806.0,0.43186561]
[1730645816919,0.001672,67807.0,67806.0,0.43486561]
[1730645816920,0.002672,67807.0,67806.0,0.43486561]
[1730645817346,0.001672,67807.0,67806.0,0.43286561]
[1730645817561,0.22159028,67829.0,67806.0,0.43286561]
[1730645817562,0.22159028,67829.0,67818.0,0.353353]
[1730645817775,0.22159028,67822.0,67818.0,0.53639242]
[1730645817987,0.22159028,67822.0,67818.0,0.54139242]
[1730645818461,0.22159028,67822.0,67818.0,0.54339242]
[1730645818672,0.22159028,67822.0,67818.0,0.50415004]
[1730645818883,0.22159028,67829.0,67818.0,0.50415004]
[1730645818884,0.002672,67819.0,67818.0,0.51815004]
[1730645819093,0.002672,67819.0,67818.0,0.52015004]
[1730645819305,0.001672,67819.0,67818.0,0.50615004]
[1730645819526,0.001672,67819.0,67818.0,0.51815004]
[1730645819527,0.002672,67819.0,67818.0,0.51815004]
[1730645819972,0.002672,67819.0,67818.0,0.55205004]
[1730645820197,0.002672,67819.0,67818.0,0.55105004]
[1730645820427,0.002672,67819.0,67818.0,0.5557244]
[1730645820650,0.002672,67819.0,67818.0,0.5567244]
[1730645820913,0.002672,67819.0,67818.0,0.59696678]
[1730645820914,0.003672,67819.0,67818.0,0.59696678]
[1730645821125,0.003672,67819.0,67818.0,0.5597244]
[1730645821328,0.004672,67819.0,67818.0,0.60596678]
[1730645821568,0.22159028,67827.0,67826.0,0.007]
[1730645821784,0.001672,67831.0,67829.0,0.282429]
[1730645821995,0.001672,67831.0,67829.0,0.42822604]
[1730645822206,0.001672,67831.0,67829.0,0.42622604]
[1730645823103,0.00267,67830.0,67829.0,0.43522604]
[1730645823762,0.00267,67830.0,67829.0,0.30522604]
[1730645823978,0.00367,67830.0,67829.0,0.159429]
[1730645824194,0.00367,67830.0,67829.0,0.30522604]
[1730645824407,0.00367,67830.0,67829.0,0.012]
[1730645824865,0.00367,67830.0,67820.0,0.294898]
[1730645824866,0.00167,67830.0,67820.0,0.294898]
[1730645825089,0.00167,67830.0,67820.0,0.22159028]
[1730645825090,0.1235,67829.0,67820.0,0.22159028]
[1730645825311,0.1235,67829.0,67815.0,0.147458]
[1730645825312,0.22159028,67828.0,67815.0,0.147458]
[1730645825536,0.1235,67829.0,67817.0,0.22159028]
[1730645825537,0.14579704,67827.0,67817.0,0.22159028]
[1730645825765,0.14579704,67827.0,67810.0,0.22159028]
[1730645825766,0.14579704,67827.0,67821.0,0.22159028]
[1730645826049,0.147448,67821.0,67812.0,0.147465]
[1730645826261,0.1235,67829.0,67817.0,0.22159028]
[1730645826482,0.147452,67819.0,67811.0,0.22453912]
[1730645826703,0.1235,67829.0,67818.0,0.22159028]
[1730645826922,0.147443,67823.0,67812.0,0.442399]
[1730645827142,0.08545376,67822.0,67811.0,0.36738732]
[1730645827373,0.14744,67824.0,67812.0,0.294933]
[1730645827591,0.147436,67826.0,67818.0,0.147453]
[1730645827805,0.294872,67826.0,67816.0,0.147456]
[1730645828032,0.38877465,67826.0,67815.0,0.00294883]
[1730645828295,0.147447,67821.0,67812.0,0.148465]
[1730645828571,0.1375,67829.0,67811.0,0.36738732]
[1730645828572,0.294876,67825.0,67811.0,0.36738732]
[1730645828750,0.294876,67825.0,67814.0,0.147461]
[1730645828955,0.147444,67822.0,67818.0,0.001]
[1730645829165,0.294876,67825.0,67812.0,0.22159028]
[1730645829382,0.147447,67821.0,67812.0,0.36905628]
[1730645829591,0.153447,67821.0,67812.0,0.37005628]
[1730645830476,0.153447,67821.0,67813.0,0.147463]
[1730645830707,0.147452,67819.0,67811.0,0.14579704]
[1730645830912,0.147461,67815.0,67811.0,0.22159028]
[1730645831181,0.009,67821.0,67811.0,0.22159028]
[1730645831393,0.009,67821.0,67798.0,0.005]
[1730645831394,0.147478,67807.0,67796.0,0.295002]
[1730645831602,0.0761,67818.0,67796.0,0.295002]
[1730645831603,0.0474,67811.0,67796.0,0.295002]
[1730645831857,0.147459,67816.0,67805.0,0.147481]
[1730645832094,0.0761,67818.0,67810.0,0.147469]
[1730645832305,0.0761,67818.0,67811.0,0.00294903]
[1730645832524,0.0761,67818.0,67811.0,0.147468]
[1730645832953,0.37101,67818.0,67806.0,0.14579704]
[1730645833172,0.0761,67818.0,67806.0,0.14579704]
[1730645833594,0.442374,67816.0,67807.0,0.147476]
[1730645833837,0.147459,67816.0,67806.0,0.14579704]
[1730645834045,0.0821,67818.0,67812.0,0.147465]
[1730645834261,0.0821,67818.0,67808.0,0.00294911]
[1730645834262,0.0821,67818.0,67811.0,0.147467]
[1730645834504,0.147458,67816.0,67811.0,0.00294906]
[1730645834718,0.147458,67816.0,67809.0,0.00294911]
[1730645835177,0.377008,67818.0,67809.0,0.00294911]
[1730645835178,0.232554,67818.0,67810.0,0.147468]
[1730645835428,0.232554,67818.0,67811.0,0.00294906]
[1730645835642,0.01158097,67817.0,67811.0,0.1487461]
[1730645835881,0.001,67816.0,67812.0,0.294933]
[1730645836126,0.001,67816.0,67811.0,0.14579704]
[1730645836342,0.001,67816.0,67813.0,0.147464]
[1730645836559,0.001,67816.0,67811.0,0.29326304]
[1730645836777,0.001,67816.0,67806.0,0.147477]
[1730645836991,0.001,67816.0,67806.0,0.14579704]
[1730645837210,0.004,67816.0,67807.0,0.29790306]
[1730645837427,0.29492,67815.0,67806.0,0.14579704]
[1730645837636,0.44238,67815.0,67806.0,0.29327504]
[1730645837846,0.295724,67818.0,67808.0,0.147474]
[1730645838062,0.152458,67816.0,67809.0,0.00294906]
[1730645838297,0.01159431,67815.0,67809.0,0.00294906]
[1730645838504,0.151458,67816.0,67810.0,0.294941]
[1730645838505,0.004,67816.0,67810.0,0.294941]
[1730645838719,0.004,67816.0,67812.0,0.147465]
[1730645838937,0.004,67816.0,67813.0,0.00294895]
[1730645839153,0.004,67816.0,67812.0,0.147465]
[1730645839367,0.0116034,67815.0,67809.0,0.14579704]
[1730645839625,0.003,67815.0,67805.0,0.147481]
[1730645839841,0.147462,67814.0,67807.0,0.147476]
[1730645840058,0.148271,67818.0,67808.0,0.294949]
[1730645840263,0.001,67816.0,67807.0,0.14579704]
[1730645840484,0.01160921,67815.0,67810.0,0.294941]
[1730645840701,0.01160921,67815.0,67809.0,0.294946]
[1730645840702,0.004,67816.0,67812.0,0.147464]
[1730645840911,0.001,67815.0,67814.0,0.147462]
[1730645841109,0.000817,67818.0,67813.0,0.00294895]
[1730645841372,0.007817,67818.0,67814.0,0.294924]
[1730645841591,0.007817,67818.0,67815.0,0.00294888]
[1730645842007,0.007817,67818.0,67813.0,0.147463]
[1730645842712,0.01162725,67817.0,67813.0,0.147463]
[1730645842917,0.01162629,67816.0,67810.0,0.14579704]
[1730645843117,0.01162629,67815.0,67811.0,0.14579704]
[1730645843355,0.01162629,67814.0,67812.0,0.147465]
[1730645843563,0.01162629,67813.0,67812.0,0.147465]
[1730645843783,0.000817,67818.0,67811.0,0.14579704]
[1730645843998,0.01163096,67817.0,67812.0,0.147466]
[1730645844181,0.000817,67818.0,67811.0,0.44073404]
[1730645844182,0.01263096,67816.0,67811.0,0.44073404]
[1730645844390,0.01263096,67816.0,67813.0,0.147462]
[1730645844391,0.01163096,67815.0,67813.0,0.147462]
[1730645844598,0.01163096,67814.0,67813.0,0.147462]
[1730645845470,0.01163096,67814.0,67811.0,0.44073404]
[1730645845685,0.01163096,67814.0,67811.0,0.14579704]
[1730645845901,0.003817,67818.0,67811.0,0.14579704]
[1730645845902,0.01163096,67813.0,67811.0,0.14579704]
[1730645846134,0.003817,67818.0,67812.0,0.147465]
[1730645846346,0.01163498,67817.0,67812.0,0.147465]
[1730645846584,0.01163498,67817.0,67811.0,0.14579704]
[1730645846585,0.17770854,67816.0,67811.0,0.14579704]
[1730645846801,0.03024954,67815.0,67813.0,0.001]
[1730645847034,0.01163498,67814.0,67813.0,0.001]
[1730645847245,0.000817,67818.0,67817.0,0.275455]
[1730645847903,0.000817,67818.0,67817.0,0.247455]
[1730645848337,0.000817,67818.0,67817.0,0.147455]
[1730645848548,0.001817,67818.0,67817.0,0.003]
[1730645848762,0.002817,67818.0,67817.0,0.011]
[1730645849410,0.01445759,67818.0,67817.0,0.011]
[1730645849622,0.01345759,67818.0,67817.0,0.008]
[1730645849829,0.01245759,67818.0,67816.0,0.1]
[1730645850042,0.001817,67818.0,67817.0,0.004]
[1730645850290,0.001817,67818.0,67817.0,0.015]
[1730645850291,0.01445851,67818.0,67817.0,0.015]
[1730645850500,0.01245851,67818.0,67813.0,0.247463]
[1730645850714,0.01164151,67817.0,67813.0,0.1]
[1730645850925,0.01164151,67817.0,67812.0,0.001632]
[1730645850926,0.147462,67814.0,67812.0,0.001632]
[1730645851150,0.15910551,67813.0,67812.0,0.001632]
[1730645851369,0.30802754,67813.0,67812.0,0.001632]
[1730645852889,0.30804371,67813.0,67812.0,0.001632]
[1730645853511,0.31104371,67813.0,67812.0,0.001632]
[1730645853727,0.31904371,67813.0,67812.0,0.002632]
[1730645853944,0.31604371,67813.0,67812.0,0.002632]
[1730645854408,0.46484075,67813.0,67812.0,0.001632]
[1730645854899,0.46784075,67813.0,67812.0,0.002632]
[1730645855791,0.36784075,67813.0,67812.0,0.002632]
[1730645856008,0.32537675,67813.0,67812.0,0.002632]
[1730645856230,0.48684075,67813.0,67812.0,0.002632]
[1730645856491,0.49386459,67813.0,67812.0,0.002632]
[1730645856941,0.58001021,67813.0,67812.0,0.002632]
[1730645856944,0.61030638,67813.0,67812.0,0.002632]
[1730645857635,0.49185721,67813.0,67812.0,0.002632]
[1730645857875,0.48685721,67813.0,67812.0,0.002632]
[1730645858107,0.49185721,67813.0,67812.0,0.002632]
[1730645858585,0.48685721,67813.0,67812.0,0.002632]
[1730645859977,0.50995673,67813.0,67812.0,0.002632]
[1730645860191,0.51495673,67813.0,67812.0,0.002632]
[1730645860405,0.63279487,67813.0,67812.0,0.002632]
[1730645861027,0.60969535,67813.0,67812.0,0.002632]
[1730645862070,0.49185721,67813.0,67812.0,0.002632]
[1730645862277,0.48685721,67813.0,67812.0,0.002632]
[1730645866473,0.49185721,67813.0,67812.0,0.002632]
[1730645866701,0.49385721,67813.0,67812.0,0.002632]
[1730645867161,0.56156104,67813.0,67812.0,0.002632]
[1730645867386,0.70771538,67813.0,67812.0,0.002632]
[1730645867599,0.72135485,67813.0,67812.0,0.002632]
[1730645868019,0.72135485,67813.0,67812.0,0.001632]
[1730645868228,0.70735485,67813.0,67812.0,0.001632]
[1730645868853,0.56382367,67813.0,67812.0,0.001632]
[1730645869530,0.57782367,67813.0,67812.0,0.001632]
[1730645869955,0.59182367,67813.0,67812.0,0.001632]
[1730645870170,0.57282367,67813.0,67812.0,0.001632]
[1730645870387,0.57782367,67813.0,67812.0,0.001632]
[1730645870609,0.59182367,67813.0,67812.0,0.001632]
[1730645871306,0.59181596,67813.0,67812.0,0.001632]
[1730645872043,0.72006266,67813.0,67812.0,0.001632]
[1730645872669,0.59181596,67813.0,67812.0,0.001632]
[1730645872850,0.87167217,67813.0,67812.0,0.001632]
[1730645874192,0.87448917,67813.0,67812.0,0.001632]
[1730645874862,0.63821086,67813.0,67812.0,0.001632]
[1730645875748,0.59463632,67813.0,67812.0,0.001632]
[1730645876016,0.78410734,67813.0,67812.0,0.001632]
[1730645876229,0.230601,67796.0,67795.0,0.22159028]
[1730645876468,0.41865632,67796.0,67795.0,0.22159028]
[1730645876909,0.41865632,67796.0,67772.0,0.001634]
[1730645876910,0.147518,67788.0,67772.0,0.001634]
[1730645877128,0.1591558,67788.0,67772.0,0.001634]
[1730645877385,0.147536,67780.0,67772.0,0.001634]
[1730645877613,0.1591738,67780.0,67772.0,0.001634]
[1730645877835,0.147551,67774.0,67772.0,0.001634]
[1730645878073,0.147549,67774.0,67772.0,0.001634]
[1730645878521,0.295084,67778.0,67772.0,0.001634]
[1730645878739,0.147543,67777.0,67772.0,0.001634]
[1730645878957,0.147551,67773.0,67772.0,0.001634]
[1730645879623,0.147549,67774.0,67772.0,0.001634]
[1730645880270,0.147551,67773.0,67772.0,0.001634]
[1730645880517,0.442642,67775.0,67772.0,0.001634]
[1730645880746,0.147547,67775.0,67772.0,0.001634]
[1730645880973,0.147551,67773.0,67772.0,0.001634]
[1730645881418,0.15919884,67773.0,67772.0,0.001634]
[1730645881634,0.004,67773.0,67772.0,0.001634]
[1730645882055,0.14755,67774.0,67772.0,0.001634]
[1730645882331,0.14855,67774.0,67772.0,0.001634]
[1730645882555,0.295089,67777.0,67772.0,0.001634]
[1730645882556,0.154551,67773.0,67772.0,0.001634]
[1730645882773,0.1989149,67773.0,67772.0,0.001634]
[1730645883004,0.15919298,67773.0,67772.0,0.001634]
[1730645883453,0.30499002,67773.0,67772.0,0.001634]
[1730645884135,0.32361865,67773.0,67772.0,0.001634]
[1730645884383,0.30499002,67773.0,67772.0,0.001634]
[1730645884601,0.39808243,67773.0,67772.0,0.001634]
[1730645884834,0.60425088,67773.0,67772.0,0.001634]
[1730645885057,0.60425088,67773.0,67763.0,0.000817]
[1730645885058,0.15757,67764.0,67763.0,0.000817]
[1730645885241,0.32861646,67764.0,67763.0,0.000817]
[1730645885500,0.32861646,67764.0,67763.0,0.22240728]
[1730645885730,0.32361646,67764.0,67763.0,0.000817]
[1730645885941,0.01939065,67787.0,67767.0,0.005]
[1730645886180,0.22159028,67793.0,67772.0,0.147553]
[1730645886181,0.014,67773.0,67772.0,0.147553]
[1730645886400,0.024,67773.0,67772.0,0.29335004]
[1730645886619,0.024,67773.0,67769.0,0.295116]
[1730645886843,0.014,67773.0,67769.0,0.295116]
[1730645887060,0.014,67773.0,67765.0,0.22159028]
[1730645887279,0.01163119,67780.0,67772.0,0.001634]
[1730645887503,0.147551,67773.0,67772.0,0.001634]
[1730645887959,0.15918291,67773.0,67772.0,0.001634]
[1730645888187,0.15918267,67773.0,67772.0,0.001634]
[1730645889301,0.17118267,67773.0,67772.0,0.001634]
[1730645889544,0.16718267,67773.0,67772.0,0.001634]
[1730645889996,0.34529134,67773.0,67772.0,0.001634]
[1730645890208,0.32558639,67773.0,67772.0,0.001634]
[1730645890654,0.31758639,67773.0,67772.0,0.001634]
[1730645891144,0.32658639,67773.0,67772.0,0.001634]
[1730645891357,0.16818267,67773.0,67772.0,0.001634]
[1730645891571,0.16518267,67773.0,67772.0,0.001634]
[1730645891790,0.01163167,67773.0,67772.0,0.001634]
[1730645891970,0.15918267,67773.0,67772.0,0.001634]
[1730645892241,0.18118267,67773.0,67772.0,0.001634]
[1730645892424,0.17218267,67773.0,67772.0,0.001634]
[1730645892901,0.17618267,67773.0,67772.0,0.001634]
[1730645893123,0.17218267,67773.0,67772.0,0.001634]
[1730645895806,0.18177823,67773.0,67772.0,0.001634]
[1730645896661,0.40477119,67773.0,67772.0,0.001634]
[1730645896875,0.47897119,67773.0,67772.0,0.001634]
[1730645897088,0.49834762,67773.0,67772.0,0.001634]
[1730645897304,0.48297119,67773.0,67772.0,0.001634]
[1730645897514,0.50934762,67773.0,67772.0,0.001634]
[1730645897725,0.48597119,67773.0,67772.0,0.001634]
[1730645897933,0.49396818,67773.0,67772.0,0.001634]
[1730645898150,0.50496818,67773.0,67772.0,0.001634]
[1730645898367,0.42477161,67773.0,67772.0,0.001634]
[1730645898577,0.43477161,67773.0,67772.0,0.001634]
[1730645899197,0.42977161,67773.0,67772.0,0.001634]
[1730645899416,0.45414995,67773.0,67772.0,0.001634]
[1730645899835,0.44414995,67773.0,67772.0,0.001634]
[1730645900042,0.33357161,67773.0,67772.0,0.001634]
[1730645900248,0.18777457,67773.0,67772.0,0.001634]
[1730645900461,0.20177457,67773.0,67772.0,0.001634]
[1730645900912,0.18777457,67773.0,67772.0,0.001634]
[1730645901400,0.170551,67773.0,67772.0,0.001634]
[1730645901622,0.20079961,67773.0,67772.0,0.001634]
[1730645903026,0.05324861,67773.0,67772.0,0.001634]
[1730645903216,0.20079961,67773.0,67772.0,0.001634]
[1730645903530,0.05324861,67773.0,67772.0,0.001634]
[1730645903973,0.05324861,67773.0,67772.0,0.149187]
[1730645904658,0.02163408,67773.0,67772.0,0.149187]
[1730645904886,0.01163408,67773.0,67772.0,0.149187]
[1730645905132,0.02463408,67773.0,67772.0,0.149187]